fUSD/lending_fUSD_20241227
["ID","MTS","AMOUNT","RATE_DAILY","PERIOD"]
[346801171,1735297681372,-500.0,0.00010889,2]
[346801172,1735297681409,-617.41,0.00010889,2]
[346801173,1735297681448,-1081.44,0.00010889,2]
[346801174,1735297681486,-155.33262123,0.00010889,2]
[346801175,1735297681523,-474.12291168,0.00010889,2]
[346801176,1735297681563,-905.06,0.00010889,2]
[346801177,1735297681600,-259.82514669,0.00010889,2]
[346801178,1735297681637,-500.0,0.00010889,2]
[346801179,1735297681673,-500.0,0.00010889,2]
[346801180,1735297681709,-500.0,0.00010889,2]
[346801181,1735297681746,-500.0,0.00010889,2]
[346801182,1735297681785,-1411.19,0.00010889,2]
[346801183,1735297681826,-500.0,0.00010889,2]
[346801184,1735297681865,-505.92,0.00010889,2]
[346801185,1735297681903,-694.42,0.00010889,2]
[346801186,1735297682214,-500.0,0.00010889,2]
[346801187,1735297682254,-1093.55,0.00010889,2]
[346801188,1735297682290,-2927.86,0.00010889,2]
[346801189,1735297682327,-500.0,0.00010889,2]
[346801190,1735297682364,-3166.79,0.00010889,2]
[346801191,1735297682401,-500.0,0.00010889,2]
[346801192,1735297682440,-1283.0,0.00010889,2]
[346801193,1735297682479,-1222.58,0.00010889,2]
[346801194,1735297682514,-500.0,0.00010889,2]
[346801195,1735297682551,-500.0,0.00010889,2]
[346801196,1735297682591,-500.0,0.00010889,2]
[346801197,1735297682628,-500.0,0.00010889,2]
[346801198,1735297682667,-500.0,0.00010889,2]
[346801199,1735297682705,-500.0,0.00010889,2]
[346801200,1735297682742,-500.0,0.00010889,2]
[346801201,1735297682781,-20831.79,0.00010889,2]
[346801202,1735297682821,-500.0,0.00010889,2]
[346801203,1735297682861,-539.79,0.00010889,2]
[346801204,1735297682904,-1786.58,0.00010889,2]
[346801205,1735297682943,-591.62,0.00010889,2]
[346801206,1735297682983,-500.0,0.00010889,2]
[346801207,1735297683022,-500.0,0.00010889,2]
[346801208,1735297683061,-1064.19,0.00010889,2]
[346801209,1735297683101,-1242.89,0.00010889,2]
[346801210,1735297683142,-3080.52,0.00010889,2]
[346801211,1735297683182,-500.0,0.00010889,2]
[346801212,1735297683223,-500.0,0.00010889,2]
[346801213,1735297683262,-500.0,0.00010889,2]
[346801214,1735297683304,-500.0,0.00010889,2]
[346801215,1735297683343,-1075.09,0.00010889,2]
[346801216,1735297683384,-500.0,0.00010889,2]
[346801217,1735297683426,-919.76,0.00010889,2]
[346801218,1735297683470,-500.0,0.00010889,2]
[346801219,1735297683513,-500.0,0.00010889,2]
[346801220,1735297683556,-1495.65,0.00010889,2]
[346801221,1735297683596,-500.0,0.00010889,2]
[346801222,1735297683636,-500.0,0.00010889,2]
[346801223,1735297683682,-500.0,0.00010889,2]
[346801224,1735297683723,-500.0,0.00010889,2]
[346801225,1735297683763,-1333.85,0.00010889,2]
[346801226,1735297683805,-565.76324521,0.00010889,2]
[346801227,1735297683847,-500.0,0.00010889,2]
[346801228,1735297683885,-500.0,0.00010889,2]
[346801229,1735297683926,-500.56112312,0.00010889,2]
[346801230,1735297683968,-500.0,0.00010889,2]
[346801231,1735297684007,-500.0,0.00010889,2]
[346801232,1735297684048,-500.0,0.00010889,2]
[346801233,1735297684087,-500.0,0.00010889,2]
[346801234,1735297684129,-500.0,0.00010889,2]
[346801235,1735297684168,-500.0,0.00010889,2]
[346801236,1735297684213,-500.0,0.00010889,2]
[346801237,1735297684253,-500.0,0.00010889,2]
[346801238,1735297684293,-500.0,0.00010889,2]
[346801239,1735297684332,-500.0,0.00010889,2]
[346801240,1735297684368,-500.0,0.00010889,2]
[346801241,1735297684405,-405.11070351,0.00010889,2]
[346801242,1735297684443,-500.0,0.00010889,2]
[346801243,1735297684479,-244.3520467,0.00010889,2]
[346801244,1735297684516,-500.0,0.00010889,2]
[346801245,1735297684555,-498.37823378,0.00010889,2]
[346801246,1735297684590,-495.86371307,0.00010889,2]
[346801247,1735297684627,-500.0,0.00010889,2]
[346801248,1735297684665,-500.0,0.00010889,2]
[346801249,1735297684702,-500.0,0.00010889,2]
[346801250,1735297684741,-500.0,0.00010889,2]
[346801251,1735297684777,-500.0,0.00010889,2]
[346801252,1735297684816,-500.0,0.00010889,2]
[346801253,1735297684855,-500.0,0.00010889,2]
[346801254,1735297684893,-500.0,0.00010889,2]
[346801255,1735297684931,-500.0,0.00010889,2]
[346801256,1735297684972,-500.0,0.00010889,2]
[346801257,1735297685012,-500.0,0.00010889,2]
[346801258,1735297685051,-534.55740074,0.00010889,2]
[346801259,1735297685090,-724.19,0.0001089,2]
[346801260,1735297685128,-500.0,0.0001089,2]
[346801261,1735297685165,-887.33,0.0001089,2]
[346801262,1735297685202,-500.0,0.0001089,2]
[346801263,1735297685240,-500.0,0.0001089,2]
[346801264,1735297685278,-721.24,0.0001089,2]
[346801265,1735297685319,-500.0,0.0001089,2]
[346801266,1735297685360,-500.0,0.0001089,2]
[346801267,1735297685400,-500.0,0.0001089,2]
[346801268,1735297685440,-500.0,0.0001089,2]
[346801269,1735297685479,-500.0,0.0001089,2]
[346801270,1735297685518,-500.0,0.0001089,2]
[346801271,1735297685561,-1072.21,0.0001089,2]
[346801272,1735297685598,-510.52,0.0001089,2]
[346801273,1735297685637,-500.0,0.0001089,2]
[346801274,1735297685674,-500.0,0.0001089,2]
[346801275,1735297685710,-500.0,0.0001089,2]
[346801276,1735297685748,-699.59,0.0001089,2]
[346801277,1735297685788,-500.0,0.0001089,2]
[346801278,1735297685831,-529.52,0.0001089,2]
[346801279,1735297685872,-538.57,0.0001089,2]
[346801280,1735297685910,-791.0,0.0001089,2]
[346801281,1735297685951,-500.0,0.0001089,2]
[346801282,1735297685991,-692.86,0.0001089,2]
[346801283,1735297686028,-500.0,0.0001089,2]
[346801284,1735297686065,-505.52365417,0.0001089,2]
[346801285,1735297686103,-500.0,0.0001089,2]
[346801286,1735297686139,-500.0,0.0001089,2]
[346801287,1735297686175,-500.0,0.0001089,2]
[346801288,1735297686209,-500.0,0.0001089,2]
[346801289,1735297686245,-500.0,0.0001089,2]
[346801290,1735297686279,-500.0,0.0001089,2]
[346801291,1735297686313,-500.0,0.0001089,2]
[346801292,1735297686349,-500.0,0.0001089,2]
[346801293,1735297686384,-500.0,0.0001089,2]
[346801294,1735297686421,-500.0,0.0001089,2]
[346801295,1735297686471,-500.0,0.0001089,2]
[346801296,1735297686506,-700.96,0.0001089,2]
[346801297,1735297686541,-500.0,0.0001089,2]
[346801298,1735297686579,-500.0,0.0001089,2]
[346801299,1735297686620,-500.0,0.0001089,2]
[346801300,1735297686655,-500.0,0.0001089,2]
[346801301,1735297686690,-500.0,0.0001089,2]
[346801302,1735297686724,-573.9753605,0.0001089,2]
[346801303,1735297686759,-500.0,0.0001089,2]
[346801304,1735297686797,-500.0,0.0001089,2]
[346801305,1735297686834,-500.0,0.0001089,2]
[346801306,1735297686872,-500.0,0.0001089,2]
[346801307,1735297686909,-545.95,0.0001089,2]
[346801308,1735297686947,-500.0,0.0001089,2]
[346801309,1735297686984,-817.78,0.0001089,2]
[346801310,1735297687020,-500.0,0.0001089,2]
[346801311,1735297687056,-1053.97,0.0001089,2]
[346801312,1735297687091,-500.0,0.0001089,2]
[346801313,1735297687128,-516.34426877,0.0001089,2]
[346801314,1735297687167,-268.71274357,0.0001089,2]
[346801315,1735297687208,-500.0,0.0001089,2]
[346801316,1735297687250,-500.0,0.0001089,2]
[346801317,1735297687291,-500.0,0.0001089,2]
[346801318,1735297687328,-638.32,0.0001089,2]
[346801319,1735297687366,-500.0,0.0001089,2]
[346801320,1735297687403,-817.53,0.0001089,2]
[346801321,1735297687442,-500.0,0.0001089,2]
[346801322,1735297687484,-500.0,0.0001089,2]
[346801323,1735297687524,-500.0,0.0001089,2]
[346801324,1735297687563,-500.0,0.0001089,2]
[346801325,1735297687602,-500.0,0.0001089,2]
[346801326,1735297687643,-500.0,0.0001089,2]
[346801327,1735297687682,-500.0,0.0001089,2]
[346801328,1735297687721,-500.0,0.0001089,2]
[346801329,1735297687762,-500.0,0.0001089,2]
[346801330,1735297687802,-1039.77,0.0001089,2]
[346801331,1735297687841,-500.0,0.0001089,2]
[346801332,1735297687882,-500.0,0.0001089,2]
[346801333,1735297687926,-257.02159411,0.0001089,2]
[346801334,1735297687971,-500.0,0.0001089,2]
[346801335,1735297688014,-606.96,0.0001089,2]
[346801336,1735297688058,-500.0,0.0001089,2]
[346801337,1735297688101,-500.0,0.0001089,2]
[346801338,1735297688141,-500.0,0.0001089,2]
[346801339,1735297688184,-500.0,0.0001089,2]
[346801340,1735297688228,-1297.61,0.0001089,2]
[346801341,1735297688268,-512.84012146,0.0001089,2]
[346801342,1735297688309,-500.0,0.0001089,2]
[346801343,1735297688349,-500.0,0.0001089,2]
[346801344,1735297688387,-932.72,0.0001089,2]
[346801345,1735297688425,-716.03,0.0001089,2]
[346801346,1735297688462,-500.0,0.0001089,2]
[346801347,1735297688498,-500.0,0.0001089,2]
[346801348,1735297688536,-500.0,0.0001089,2]
[346801349,1735297688573,-500.0,0.0001089,2]
[346801350,1735297688610,-500.0,0.0001089,2]
[346801351,1735297688649,-500.0,0.0001089,2]
[346801352,1735297688686,-500.0,0.0001089,2]
[346801353,1735297688726,-500.0,0.0001089,2]
[346801354,1735297688765,-545.94,0.0001089,2]
[346801355,1735297688805,-500.0,0.0001089,2]
[346801356,1735297688843,-500.0,0.0001089,2]
[346801357,1735297688881,-500.0,0.0001089,2]
[346801358,1735297688920,-500.0,0.0001089,2]
[346801359,1735297688961,-555.87,0.0001089,2]
[346801360,1735297689002,-500.0,0.0001089,2]
[346801361,1735297689042,-500.0,0.0001089,2]
[346801362,1735297689081,-500.0,0.0001089,2]
[346801363,1735297689120,-1074.44,0.0001089,2]
[346801364,1735297689159,-500.0,0.0001089,2]
[346801365,1735297689470,-500.0,0.0001089,2]
[346801366,1735297689512,-500.0,0.0001089,2]
[346801367,1735297689551,-500.0,0.0001089,2]
[346801368,1735297689592,-500.0,0.0001089,2]
[346801369,1735297689632,-500.0,0.0001089,2]
[346801370,1735297689672,-500.0,0.0001089,2]
[346801371,1735297689714,-500.0,0.0001089,2]
[346801372,1735297689756,-500.0,0.0001089,2]
[346801373,1735297689797,-500.0,0.0001089,2]
[346801374,1735297689835,-500.0,0.0001089,2]
[346801375,1735297689873,-500.0,0.0001089,2]
[346801376,1735297689909,-1278.43,0.0001089,2]
[346801377,1735297689945,-820.55,0.0001089,2]
[346801378,1735297689980,-942.06,0.0001089,2]
[346801379,1735297690014,-500.0,0.0001089,2]
[346801380,1735297690051,-675.68,0.0001089,2]
[346801381,1735297690087,-500.0,0.0001089,2]
[346801382,1735297690124,-651.22,0.0001089,2]
[346801383,1735297690159,-500.0,0.0001089,2]
[346801384,1735297690195,-725.2,0.0001089,2]
[346801385,1735297690231,-500.0,0.0001089,2]
[346801386,1735297690267,-500.0,0.0001089,2]
[346801387,1735297690302,-500.0,0.0001089,2]
[346801388,1735297690338,-500.0,0.0001089,2]
[346801389,1735297690371,-908.55,0.0001089,2]
[346801390,1735297690406,-500.0,0.0001089,2]
[346801391,1735297690443,-500.0,0.0001089,2]
[346801392,1735297690478,-500.0,0.0001089,2]
[346801393,1735297690517,-500.0,0.0001089,2]
[346801394,1735297690554,-524.34,0.0001089,2]
[346801395,1735297690590,-500.0,0.0001089,2]
[346801396,1735297690625,-585.24,0.0001089,2]
[346801397,1735297690665,-500.0,0.0001089,2]
[346801398,1735297690702,-500.0,0.0001089,2]
[346801399,1735297690737,-500.0,0.0001089,2]
[346801400,1735297690772,-858.89,0.0001089,2]
[346801401,1735297690805,-500.0,0.0001089,2]
[346801402,1735297690839,-554.51,0.0001089,2]
[346801403,1735297690873,-864.23,0.0001089,2]
[346801404,1735297690907,-458.21174183,0.0001089,2]
[346801405,1735297690942,-500.0,0.0001089,2]
[346801406,1735297690977,-500.0,0.0001089,2]
[346801407,1735297691011,-500.0,0.0001089,2]
[346801408,1735297691045,-500.0,0.0001089,2]
[346801409,1735297691080,-500.0,0.0001089,2]
[346801410,1735297691113,-500.0,0.0001089,2]
[346801411,1735297691148,-1133.56,0.0001089,2]
[346801412,1735297691184,-500.0,0.0001089,2]
[346801413,1735297691219,-671.31,0.0001089,2]
[346801414,1735297691255,-500.0,0.0001089,2]
[346801415,1735297691289,-500.0,0.0001089,2]
[346801416,1735297691322,-500.0,0.0001089,2]
[346801417,1735297691356,-686.18,0.0001089,2]
[346801418,1735297691390,-500.0,0.0001089,2]
[346801419,1735297691426,-607.22987128,0.0001089,2]
[346801420,1735297691462,-500.0,0.0001089,2]
[346801421,1735297691497,-500.0,0.0001089,2]
[346801422,1735297691530,-500.0,0.0001089,2]
[346801423,1735297691563,-253.01702685,0.0001089,2]
[346801424,1735297691598,-500.0,0.0001089,2]
[346801425,1735297691633,-500.0,0.0001089,2]
[346801426,1735297691672,-500.0,0.0001089,2]
[346801427,1735297691707,-507.7906562,0.0001089,2]
[346801428,1735297691748,-500.0,0.0001089,2]
[346801429,1735297691784,-500.0,0.0001089,2]
[346801430,1735297691820,-500.0,0.0001089,2]
[346801431,1735297691854,-507.43978714,0.0001089,2]
[346801432,1735297691887,-500.0,0.0001089,2]
[346801433,1735297691919,-500.0,0.0001089,2]
[346801434,1735297691953,-500.0,0.0001089,2]
[346801435,1735297691987,-500.0,0.0001089,2]
[346801436,1735297692022,-1123.55,0.0001089,2]
[346801437,1735297692055,-500.0,0.0001089,2]
[346801438,1735297692088,-500.0,0.0001089,2]
[346801439,1735297692122,-500.0,0.0001089,2]
[346801440,1735297692155,-500.0,0.0001089,2]
[346801441,1735297692189,-500.0,0.0001089,2]
[346801442,1735297692224,-504.36,0.0001089,2]
[346801443,1735297692262,-500.0,0.0001089,2]
[346801444,1735297692297,-778.63,0.0001089,2]
[346801445,1735297692330,-500.0,0.0001089,2]
[346801446,1735297692366,-500.0,0.0001089,2]
[346801447,1735297692401,-500.0,0.0001089,2]
[346801448,1735297692436,-517.82,0.0001089,2]
[346801449,1735297692471,-500.0,0.0001089,2]
[346801450,1735297692507,-500.0,0.0001089,2]
[346801451,1735297692545,-500.0,0.0001089,2]
[346801452,1735297692579,-500.0,0.0001089,2]
[346801453,1735297692613,-500.0,0.0001089,2]
[346801454,1735297692648,-500.0,0.0001089,2]
[346801455,1735297692682,-500.0,0.0001089,2]
[346801456,1735297692716,-500.0,0.0001089,2]
[346801457,1735297692750,-530.79,0.0001089,2]
[346801458,1735297692784,-629.18,0.0001089,2]
[346801459,1735297692820,-500.0,0.0001089,2]
[346801460,1735297692854,-500.0,0.0001089,2]
[346801461,1735297692889,-500.0,0.0001089,2]
[346801462,1735297692924,-500.0,0.0001089,2]
[346801463,1735297692959,-500.0,0.0001089,2]
[346801464,1735297692996,-500.0,0.0001089,2]
[346801465,1735297693032,-500.0,0.0001089,2]
[346801466,1735297693072,-500.0,0.0001089,2]
[346801467,1735297693110,-500.0,0.0001089,2]
[346801468,1735297693148,-500.0,0.0001089,2]
[346801469,1735297693187,-500.0,0.0001089,2]
[346801470,1735297693221,-563.44,0.0001089,2]
[346801471,1735297693258,-500.0,0.0001089,2]
[346801472,1735297693297,-500.0,0.0001089,2]
[346801473,1735297693335,-500.0,0.0001089,2]
[346801474,1735297693371,-500.0,0.0001089,2]
[346801475,1735297693408,-500.0,0.0001089,2]
[346801476,1735297693445,-546.19,0.0001089,2]
[346801477,1735297693481,-500.0,0.0001089,2]
[346801478,1735297693519,-500.0,0.0001089,2]
[346801479,1735297693555,-500.0,0.0001089,2]
[346801480,1735297693591,-7321.95157307,0.0001089,2]
[346801505,1735297832243,-250.0,0.00010029,2]
[346801507,1735297832253,-163.06,0.00010122,2]
[346801509,1735297832262,-1253.69681614,0.000107,2]
[346801511,1735297832273,-1305.49139509,0.000107,2]
[346801513,1735297832288,-1259.99999995,0.000107,2]
[346801516,1735297832299,-2816.84400929,0.000107,2]
[346801525,1735297832385,-1950.0,0.000107,2]
[346801530,1735297832397,-1616.193997,0.000107,2]
[346801533,1735297832409,-29424.77378253,0.000107,2]
[346801536,1735297832418,-5000.0,0.00010789,2]
[346801539,1735297832427,-500.0,0.00010789,2]
[346801542,1735297832436,-1000.0,0.00010789,2]
[346801545,1735297832445,-500.0,0.00010849,2]
[346801548,1735297832454,-500.0,0.00010888,2]
[346801551,1735297832464,-500.0,0.00010888,2]
[346801554,1735297832474,-500.0,0.00010888,2]
[346801557,1735297832483,-500.0,0.00010888,2]
[346801560,1735297832492,-500.0,0.00010888,2]
[346801563,1735297832502,-2358.19,0.00010888,2]
[346801566,1735297832511,-500.0,0.00010888,2]
[346801569,1735297832520,-3985.46,0.00010888,2]
[346801572,1735297832529,-756.93,0.00010888,2]
[346801575,1735297832539,-3344.69,0.00010888,2]
[346801577,1735297832548,-1442.62,0.00010888,2]
[346801580,1735297832559,-7123.84,0.00010888,2]
[346801583,1735297832569,-1942.79,0.00010888,2]
[346801585,1735297832578,-500.0,0.00010888,2]
[346801587,1735297832588,-6794.5,0.00010888,2]
[346801588,1735297832597,-11017.64,0.00010888,2]
[346801590,1735297832606,-3626.39,0.00010888,2]
[346801592,1735297832615,-960.82,0.00010888,2]
[346801594,1735297832624,-4706.73,0.00010888,2]
[346801596,1735297832633,-1941.86,0.00010888,2]
[346801598,1735297832642,-17711.99,0.00010888,2]
[346801600,1735297832651,-3078.86,0.00010888,2]
[346801602,1735297832661,-4789.3,0.00010888,2]
[346801604,1735297832670,-500.0,0.00010889,2]
[346801606,1735297832679,-500.0,0.00010889,2]
[346801607,1735297832689,-501.73909869,0.00010889,2]
[346801608,1735297832698,-500.0,0.00010889,2]
[346801609,1735297832707,-500.0,0.00010889,2]
[346801610,1735297832715,-500.0,0.00010889,2]
[346801611,1735297832724,-500.0,0.00010889,2]
[346801612,1735297832733,-500.0,0.00010889,2]
[346801613,1735297832742,-500.0,0.00010889,2]
[346801614,1735297832750,-900.02,0.00010889,2]
[346801615,1735297832759,-500.0,0.00010889,2]
[346801616,1735297832768,-500.0,0.00010889,2]
[346801617,1735297832777,-500.0,0.00010889,2]
[346801618,1735297832785,-500.0,0.00010889,2]
[346801619,1735297832795,-500.0,0.00010889,2]
[346801620,1735297832805,-500.0,0.00010889,2]
[346801621,1735297832814,-500.0,0.00010889,2]
[346801623,1735297832825,-500.0,0.00010889,2]
[346801624,1735297832837,-500.0,0.00010889,2]
[346801626,1735297832847,-500.0,0.00010889,2]
[346801628,1735297832857,-500.0,0.00010889,2]
[346801630,1735297832865,-500.0,0.00010889,2]
[346801632,1735297832876,-1763.3,0.00010889,2]
[346801634,1735297832885,-500.0,0.00010889,2]
[346801636,1735297832894,-500.0,0.00010889,2]
[346801638,1735297832905,-500.0,0.00010889,2]
[346801640,1735297832914,-509.56913241,0.00010889,2]
[346801642,1735297832924,-500.0,0.00010889,2]
[346801644,1735297832933,-500.0,0.00010889,2]
[346801646,1735297832943,-500.0,0.00010889,2]
[346801648,1735297832952,-500.0,0.00010889,2]
[346801650,1735297832962,-500.0,0.00010889,2]
[346801652,1735297832971,-500.0,0.00010889,2]
[346801654,1735297832980,-500.0,0.00010889,2]
[346801656,1735297832990,-501.16516623,0.00010889,2]
[346801658,1735297832999,-500.0,0.00010889,2]
[346801660,1735297833009,-500.0,0.00010889,2]
[346801668,1735297833290,-508.21940173,0.00010889,2]
[346801669,1735297833306,-500.0,0.00010889,2]
[346801670,1735297833316,-500.0,0.00010889,2]
[346801671,1735297833326,-815.95,0.00010889,2]
[346801672,1735297833336,-500.0,0.00010889,2]
[346801673,1735297833345,-500.0,0.00010889,2]
[346801674,1735297833355,-500.0,0.00010889,2]
[346801675,1735297833365,-500.0,0.00010889,2]
[346801676,1735297833375,-500.0,0.00010889,2]
[346801677,1735297833384,-500.0,0.00010889,2]
[346801678,1735297833394,-500.0,0.00010889,2]
[346801679,1735297833403,-1292.03,0.00010889,2]
[346801680,1735297833413,-500.0,0.00010889,2]
[346801681,1735297833422,-13108.89,0.00010889,2]
[346801682,1735297833431,-500.0,0.00010889,2]
[346801683,1735297833441,-500.0,0.00010889,2]
[346801684,1735297833451,-500.0,0.00010889,2]
[346801685,1735297833461,-1610.37,0.00010889,2]
[346801686,1735297833471,-500.0,0.00010889,2]
[346801687,1735297833480,-502.6809562,0.00010889,2]
[346801688,1735297833490,-500.0,0.00010889,2]
[346801689,1735297833499,-500.0,0.00010889,2]
[346801690,1735297833509,-500.0,0.00010889,2]
[346801691,1735297833518,-500.0,0.00010889,2]
[346801692,1735297833528,-11658.54,0.00010889,2]
[346801693,1735297833538,-500.0,0.00010889,2]
[346801694,1735297833547,-1456.42,0.00010889,2]
[346801695,1735297833558,-500.0,0.00010889,2]
[346801696,1735297833567,-323.29148533,0.00010889,2]
[346801697,1735297833578,-502.80149315,0.00010889,2]
[346801698,1735297833587,-500.0,0.00010889,2]
[346801699,1735297833597,-3162.16,0.00010889,2]
[346801700,1735297833606,-2005.79,0.00010889,2]
[346801701,1735297833616,-507.87972403,0.00010889,2]
[346801702,1735297833625,-500.0,0.00010889,2]
[346801703,1735297833635,-500.0,0.00010889,2]
[346801704,1735297833644,-500.0,0.00010889,2]
[346801705,1735297833654,-865.09,0.00010889,2]
[346801706,1735297833663,-539.22,0.00010889,2]
[346801707,1735297833673,-2585.59,0.00010889,2]
[346801708,1735297833683,-6777.97,0.00010889,2]
[346801709,1735297833693,-1500.64,0.00010889,2]
[346801710,1735297833702,-501.77674655,0.00010889,2]
[346801711,1735297833712,-500.0,0.00010889,2]
[346801712,1735297833721,-500.0,0.00010889,2]
[346801713,1735297833730,-500.0,0.00010889,2]
[346801714,1735297833740,-8122.95,0.00010889,2]
[346801715,1735297833749,-500.0,0.00010889,2]
[346801716,1735297833758,-500.0,0.00010889,2]
[346801717,1735297833768,-500.0,0.00010889,2]
[346801718,1735297833778,-500.0,0.00010889,2]
[346801719,1735297833787,-500.0,0.00010889,2]
[346801720,1735297833798,-1472.75,0.00010889,2]
[346801721,1735297833809,-3353.57,0.00010889,2]
[346801722,1735297833819,-1893.23,0.00010889,2]
[346801723,1735297833833,-500.0,0.00010889,2]
[346801724,1735297833844,-695.06,0.00010889,2]
[346801725,1735297833853,-1490.22,0.00010889,2]
[346801726,1735297833863,-627.37,0.00010889,2]
[346801727,1735297833873,-500.0,0.00010889,2]
[346801728,1735297833882,-507.92380145,0.00010889,2]
[346801729,1735297833891,-2859.44,0.00010889,2]
[346801730,1735297833902,-500.0,0.00010889,2]
[346801731,1735297833911,-1863.59,0.00010889,2]
[346801732,1735297833922,-500.0,0.00010889,2]
[346801733,1735297833932,-921.25,0.00010889,2]
[346801734,1735297833941,-500.0,0.00010889,2]
[346801735,1735297833951,-19559.85,0.00010889,2]
[346801736,1735297833961,-500.0,0.00010889,2]
[346801737,1735297833971,-500.0,0.00010889,2]
[346801738,1735297833981,-500.0,0.00010889,2]
[346801739,1735297833991,-2627.31,0.00010889,2]
[346801740,1735297834001,-504.87401648,0.00010889,2]
[346801741,1735297834012,-500.0,0.00010889,2]
[346801742,1735297834022,-500.0,0.00010889,2]
[346801743,1735297834032,-3973.29,0.00010889,2]
[346801744,1735297834042,-500.0,0.00010889,2]
[346801745,1735297834052,-4854.89,0.00010889,2]
[346801746,1735297834062,-859.81,0.00010889,2]
[346801747,1735297834072,-500.0,0.00010889,2]
[346801748,1735297834083,-500.0,0.00010889,2]
[346801749,1735297834092,-1439.34,0.00010889,2]
[346801750,1735297834103,-2002.79,0.00010889,2]
[346801751,1735297834112,-889.86,0.00010889,2]
[346801752,1735297834121,-500.0,0.00010889,2]
[346801753,1735297834132,-11155.83,0.00010889,2]
[346801754,1735297834142,-500.0,0.00010889,2]
[346801755,1735297834152,-500.0,0.00010889,2]
[346801756,1735297834161,-500.0,0.00010889,2]
[346801757,1735297834171,-500.0,0.00010889,2]
[346801758,1735297834181,-500.0,0.00010889,2]
[346801759,1735297834190,-500.0,0.00010889,2]
[346801760,1735297834200,-500.0,0.00010889,2]
[346801761,1735297834209,-500.0,0.00010889,2]
[346801762,1735297834219,-500.0,0.00010889,2]
[346801763,1735297834229,-500.0,0.00010889,2]
[346801764,1735297834239,-236.56281051,0.00010889,2]
[346801765,1735297834249,-500.0,0.00010889,2]
[346801766,1735297834258,-500.0,0.00010889,2]
[346801767,1735297834267,-1981.10664651,0.00010889,2]
[346801768,1735297834282,-1291.25335349,0.00010889,2]
[346801769,1735297834292,-500.0,0.00010889,2]
[346801770,1735297834301,-500.0,0.00010889,2]
[346801771,1735297834312,-1173.86,0.00010889,2]
[346801772,1735297834322,-500.0,0.00010889,2]
[346801773,1735297834332,-500.0,0.00010889,2]
[346801774,1735297834342,-500.0,0.00010889,2]
[346801775,1735297834351,-993.5,0.00010889,2]
[346801776,1735297834361,-1657.89720472,0.00010889,2]
[346801777,1735297834427,-687.06279528,0.00010889,2]
[346801778,1735297834437,-500.0,0.00010889,2]
[346801779,1735297834446,-929.7,0.00010889,2]
[346801780,1735297834456,-500.0,0.00010889,2]
[346801781,1735297834466,-500.0,0.00010889,2]
[346801782,1735297834476,-8956.46,0.00010889,2]
[346801783,1735297834487,-500.0,0.00010889,2]
[346801784,1735297834496,-500.0,0.00010889,2]